[Event "Championnat du monde jeunes U12"]
[Date "2024.11.26"]
[White "Gao, Arthur"]
[Black "Marchand, Calix"]
[WhiteElo "1979"]
[BlackElo "2027"]
[Round "11.13"]
[Result "0-1"]
[TimeControl "5400+30"]

1. e4 {[%clk 1:30:58]} 1... c5 {[%clk 1:30:44]} 2. Nf3 {[%clk 1:31:14]} 2... e6
{[%clk 1:31:00]} 3. d4 {[%clk 1:31:36]} 3... cxd4 {[%clk 1:31:24]} 4. Nxd4
{[%clk 1:31:58]} 4... Nc6 {[%clk 1:31:48]} 5. Nc3 {[%clk 1:32:26]} 5... Nf6
{[%clk 1:32:09]} 6. Nxc6 {[%clk 1:32:17]} 6... bxc6 {[%clk 1:32:35]} 7. e5
{[%clk 1:32:34]} 7... Nd5 {[%clk 1:32:57]} 8. Ne4 {[%clk 1:33:00]} 8... Bb7
{[%clk 1:33:17]} 9. c4 {[%clk 1:25:09]} 9... Nb4 {[%clk 1:33:29]} 10. Bd2 {[%clk
1:12:24]} 10... c5 {[%clk 1:28:45]} 11. Bxb4 {[%clk 1:07:47]} 11... Bxe4 {[%clk
1:27:14]} 12. Bc3 {[%clk 1:07:40]} 12... a5 {[%clk 1:25:10]} 13. Qg4 {[%clk
1:04:42]} 13... Bc6 {[%clk 1:22:53]} 14. Qg3 {[%clk 0:50:10]} 14... Qb6 {[%clk
1:14:52]} 15. O-O-O {[%clk 0:35:45]} 15... Qb7 {[%clk 1:11:46]} 16. f3 {[%clk
0:31:15]} 16... g6 {[%clk 1:08:54]} 17. Bd3 {[%clk 0:27:01]} 17... h5 {[%clk
1:00:11]} 18. Rhg1 {[%clk 0:18:38]} 18... a4 {[%clk 0:55:47]} 19. Rde1 {[%clk
0:09:18]} 19... Bh6+ {[%clk 0:52:07]} 20. f4 {[%clk 0:07:53]} 20... O-O-O {[%clk
0:45:40]} 21. Qf2 {[%clk 0:06:46]} 21... Kb8 {[%clk 0:41:08]} 22. Kc2 {[%clk
0:03:09]} 22... Ka8 {[%clk 0:38:15]} 23. Qxc5 {[%clk 0:02:27]} 23... Bxf4 {[%clk
0:38:15]} 24. Qa5+ {[%clk 0:02:27]} 24... Qa7 {[%clk 0:38:15]} 25. Qxa7+ {[%clk
0:02:27]} 25... Kxa7 {[%clk 0:35:24]} 26. g3 {[%clk 0:01:59]} 26... Bg5 {[%clk
0:33:58]} 27. Rgf1 {[%clk 0:02:18]} 27... Rh7 {[%clk 0:32:31]} 28. Rf2 {[%clk
0:00:34]} 28... d6 {[%clk 0:27:35]} 29. h4 {[%clk 0:00:31]} 29... Be7 {[%clk
0:26:12]} 30. Ref1 {[%clk 0:00:42]} 30... Be8 {[%clk 0:26:04]} 31. b3 {[%clk
0:00:32]} 31... dxe5 {[%clk 0:21:47]} 32. Bxe5 {[%clk 0:00:58]} 32... Bc5 {[%clk
0:22:16]} 33. Rd2 {[%clk 0:00:48]} 33... f5 {[%clk 0:20:52]} 34. Kc3 {[%clk
0:00:57]} 34... Rb7 {[%clk 0:20:26]} 35. Kc2 {[%clk 0:01:25]} 35... Bc6 {[%clk
0:20:14]} 36. Rfd1 {[%clk 0:00:44]} 36... Rbd7 {[%clk 0:18:55]} 37. Bf6 {[%clk
0:00:44]} 37... Rf8 {[%clk 0:19:10]} 38. Bc3 {[%clk 0:00:49]} 38... Rfd8 {[%clk
0:15:26]} 39. Re1 {[%clk 0:00:46]} 39... Re8 {[%clk 0:13:05]} 40. b4 {[%clk
0:00:50]} 40... Bd6 {[%clk 0:13:08]} 41. Rg1 {[%clk 0:00:39]} 41... e5 {[%clk
0:12:58]} 42. c5 {[%clk 0:00:52]} 42... Bf8 {[%clk 0:11:44]} 43. Rgd1 {[%clk
0:00:32]} 43... Bh6 {[%clk 0:11:29]} 44. Rf2 {[%clk 0:00:32]} 44... Red8 {[%clk
0:08:14]} 45. b5 {[%clk 0:00:34]} 45... Bxb5 {[%clk 0:07:01]} 46. Be2 {[%clk
0:00:56]} 46... Rxd1 {[%clk 0:06:44]} 47. Bxd1 {[%clk 0:01:23]} 47... a3 {[%clk
0:05:32]} 48. Be2 {[%clk 0:01:17]} 48... Ba4+ {[%clk 0:05:03]} 49. Kb1 {[%clk
0:01:45]} 49... e4 {[%clk 0:04:37]} 50. Rf1 {[%clk 0:01:53]} 50... Be3 {[%clk
0:04:12]} 51. Bc4 {[%clk 0:01:57]} 51... Bxc5 {[%clk 0:04:18]} 52. Bf7 {[%clk
0:02:13]} 52... Rd6 {[%clk 0:03:36]} 53. Be5 {[%clk 0:01:50]} 53... Rb6+ {[%clk
0:03:48]} 54. Ka1 {[%clk 0:02:14]} 54... e3 {[%clk 0:03:24]} 55. Rc1 {[%clk
0:02:30]} 55... e2 {[%clk 0:02:57]} 56. Bc4 {[%clk 0:02:40]} 56... Bf2 {[%clk
0:01:56]} 57. Bxe2 {[%clk 0:03:02]} 57... Re6 {[%clk 0:01:51]} 58. Bc3 {[%clk
0:02:04]} 58... Rxe2 {[%clk 0:02:11]} 59. g4 {[%clk 0:02:31]} 59... hxg4 {[%clk
0:02:28]} 60. h5 {[%clk 0:02:56]} 60... gxh5 {[%clk 0:02:31]} 61. Be5 {[%clk
0:00:37]} 61... Rxe5 {[%clk 0:02:44]} 62. Rc2 {[%clk 0:00:43]} 62... Re1+ {[%clk
0:02:50]} 0-1

[Variant "Standard"]
[Site "Europe Echecs"]

[Event "Championnat du monde jeunes U12"]
[Date "2024.11.26"]
[White "Ritzerveld, Noah"]
[Black "Nguyen, Khoi"]
[WhiteElo "2285"]
[BlackElo "1994"]
[Round "11.14"]
[Result "0-1"]
[TimeControl "5400+30"]

1. e4 {[%clk 1:30:58]} 1... e6 {[%clk 1:30:51]} 2. d4 {[%clk 1:31:24]} 2... d5
{[%clk 1:31:16]} 3. Nc3 {[%clk 1:31:50]} 3... Nf6 {[%clk 1:31:39]} 4. e5 {[%clk
1:31:51]} 4... Nfd7 {[%clk 1:32:01]} 5. f4 {[%clk 1:32:12]} 5... c5 {[%clk
1:32:27]} 6. Nf3 {[%clk 1:32:37]} 6... Nc6 {[%clk 1:32:52]} 7. Be3 {[%clk
1:33:02]} 7... cxd4 {[%clk 1:33:16]} 8. Nxd4 {[%clk 1:33:18]} 8... Qb6 {[%clk
1:33:41]} 9. Qd2 {[%clk 1:33:03]} 9... Qxb2 {[%clk 1:34:05]} 10. Rb1 {[%clk
1:33:12]} 10... Qa3 {[%clk 1:34:28]} 11. Bb5 {[%clk 1:32:56]} 11... Nxd4 {[%clk
1:34:52]} 12. Bxd4 {[%clk 1:32:53]} 12... a6 {[%clk 1:35:18]} 13. Bxd7+ {[%clk
1:32:48]} 13... Bxd7 {[%clk 1:35:39]} 14. Rb3 {[%clk 1:32:54]} 14... Qe7 {[%clk
1:36:03]} 15. Rxb7 {[%clk 1:33:10]} 15... Qd8 {[%clk 1:36:28]} 16. O-O {[%clk
1:29:54]} 16... Qc8 {[%clk 1:36:17]} 17. Rfb1 {[%clk 1:21:48]} 17... Bc5 {[%clk
1:36:05]} 18. Bxc5 {[%clk 1:18:37]} 18... Qxc5+ {[%clk 1:36:26]} 19. Kh1 {[%clk
1:18:45]} 19... Bc8 {[%clk 1:14:56]} 20. R7b3 {[%clk 1:05:47]} 20... O-O {[%clk
1:14:33]} 21. Ne2 {[%clk 1:04:56]} 21... Bd7 {[%clk 1:10:22]} 22. Nd4 {[%clk
1:01:47]} 22... Rfc8 {[%clk 1:07:20]} 23. h3 {[%clk 0:59:57]} 23... h6 {[%clk
0:59:34]} 24. Rg3 {[%clk 0:51:12]} 24... Kh8 {[%clk 0:56:31]} 25. Rb7 {[%clk
0:48:14]} 25... Rc7 {[%clk 0:53:23]} 26. Rxc7 {[%clk 0:38:41]} 26... Qxc7 {[%clk
0:53:51]} 27. Rc3 {[%clk 0:37:25]} 27... Qd8 {[%clk 0:48:00]} 28. Rb3 {[%clk
0:35:37]} 28... Rb8 {[%clk 0:43:24]} 29. Kh2 {[%clk 0:34:29]} 29... Qc7 {[%clk
0:42:03]} 30. Rxb8+ {[%clk 0:31:58]} 30... Qxb8 {[%clk 0:42:32]} 31. Qa5 {[%clk
0:31:37]} 31... Bb5 {[%clk 0:42:29]} 32. a4 {[%clk 0:30:37]} 32... Bc4 {[%clk
0:41:32]} 33. Nc6 {[%clk 0:30:06]} 33... Qc8 {[%clk 0:37:03]} 34. Qc5 {[%clk
0:28:29]} 34... Kh7 {[%clk 0:35:13]} 35. Qd6 {[%clk 0:27:51]} 35... Be2 {[%clk
0:30:44]} 36. c3 {[%clk 0:23:46]} 36... Bd1 {[%clk 0:28:54]} 37. a5 {[%clk
0:23:20]} 37... Ba4 {[%clk 0:28:34]} 38. Ne7 {[%clk 0:17:08]} 38... Qc4 {[%clk
0:28:00]} 39. Qb4 {[%clk 0:05:13]} 39... Qxb4 {[%clk 0:28:15]} 40. cxb4 {[%clk
0:05:33]} 40... d4 {[%clk 0:28:32]} 41. b5 {[%clk 0:04:31]} 41... Bxb5 {[%clk
0:26:42]} 42. Kg3 {[%clk 0:03:27]} 42... d3 {[%clk 0:27:02]} 43. Kf2 {[%clk
0:02:54]} 43... d2 {[%clk 0:27:27]} 0-1

[Variant "Standard"]
[Site "Europe Echecs"]

[Event "Championnat du monde jeunes U12"]
[Date "2024.11.26"]
[White "Gao, Heye"]
[Black "Saminskij, Jan"]
[WhiteElo "1933"]
[BlackElo "2202"]
[Round "11.15"]
[Result "1-0"]
[TimeControl "5400+30"]

1. e4 {[%clk 1:30:41]} 1... e6 {[%clk 1:29:46]} 2. d4 {[%clk 1:30:32]} 2... d5
{[%clk 1:29:38]} 3. Nc3 {[%clk 1:30:17]} 3... Nf6 {[%clk 1:29:47]} 4. e5 {[%clk
1:30:11]} 4... Nfd7 {[%clk 1:30:14]} 5. f4 {[%clk 1:30:06]} 5... c5 {[%clk
1:30:41]} 6. Nf3 {[%clk 1:30:01]} 6... Nc6 {[%clk 1:31:06]} 7. Be3 {[%clk
1:28:46]} 7... Be7 {[%clk 1:31:03]} 8. Qd2 {[%clk 1:28:09]} 8... a6 {[%clk
1:31:25]} 9. Bd3 {[%clk 1:27:41]} 9... b5 {[%clk 1:31:42]} 10. Qf2 {[%clk
1:26:16]} 10... b4 {[%clk 0:38:48]} 11. Na4 {[%clk 1:26:16]} 11... c4 {[%clk
0:38:48]} 12. Be2 {[%clk 1:26:16]} 12... O-O {[%clk 0:38:48]} 13. b3 {[%clk
1:26:16]} 13... c3 {[%clk 0:38:48]} 14. Bd3 {[%clk 1:26:16]} 14... f5 {[%clk
0:38:48]} 15. h3 {[%clk 1:26:16]} 15... a5 {[%clk 0:38:48]} 16. g4 {[%clk
1:26:16]} 16... Ba6 {[%clk 0:38:48]} 17. Bxa6 {[%clk 1:26:16]} 17... Rxa6 {[%clk
0:38:48]} 18. Qe2 {[%clk 1:26:16]} 18... Ra7 {[%clk 0:38:48]} 19. h4 {[%clk
1:26:16]} 19... Nb6 {[%clk 0:38:48]} 20. Qb5 {[%clk 1:26:16]} 20... Qd7 {[%clk
0:38:48]} 21. Nxb6 {[%clk 1:26:16]} 21... Qb7 {[%clk 1:31:42]} 22. Ng5 {[%clk
1:26:16]} 22... Bxg5 {[%clk 0:39:09]} 23. hxg5 {[%clk 0:44:25]} 23... Ra6 {[%clk
0:39:22]} 24. Qe2 {[%clk 0:30:32]} 24... Rxb6 {[%clk 0:38:09]} 25. Kf2 {[%clk
0:27:19]} 25... g6 {[%clk 0:38:29]} 26. Rh6 {[%clk 0:27:15]} 26... fxg4 {[%clk
0:35:22]} 27. Rah1 {[%clk 0:26:37]} 27... Rf7 {[%clk 0:35:41]} 28. Qxg4 {[%clk
0:26:45]} 28... Ne7 {[%clk 0:35:52]} 29. Qh3 {[%clk 0:26:59]} 29... Rg7 {[%clk
0:33:44]} 30. Rxh7 {[%clk 0:27:15]} 30... Nf5 {[%clk 0:33:58]} 31. Rh8+ {[%clk
0:25:30]} 31... Kf7 {[%clk 0:34:25]} 32. Rd8 {[%clk 0:24:40]} 32... Qe7 {[%clk
0:34:17]} 33. Qh8 {[%clk 0:24:53]} 33... Rb7 {[%clk 0:32:02]} 34. Rh7 {[%clk
0:24:35]} 34... Qxd8 {[%clk 0:32:29]} 35. Rxg7+ {[%clk 0:24:49]} 35... Nxg7 36.
Qxd8 {[%clk 0:25:09]} 36... Ne8 37. f5 {[%clk 0:25:03]} 37... gxf5 {[%clk
0:33:44]} 1-0

[Variant "Standard"]
[Site "Europe Echecs"]

[Event "Championnat du monde jeunes U12"]
[Date "2024.11.26"]
[White "Diachek, Andrii"]
[Black "Zhandos, Akarys"]
[WhiteElo "2162"]
[BlackElo "1932"]
[Round "11.16"]
[Result "1-0"]
[TimeControl "5400+30"]

1. d4 {[%clk 1:30:57]} 1... Nf6 {[%clk 1:29:48]} 2. c4 {[%clk 1:31:22]} 2... e6
{[%clk 1:28:55]} 3. Nc3 {[%clk 1:31:45]} 3... Bb4 {[%clk 1:27:52]} 4. Qc2 {[%clk
1:32:09]} 4... O-O {[%clk 1:26:52]} 5. a3 {[%clk 1:32:34]} 5... Bxc3+ {[%clk
1:27:04]} 6. Qxc3 {[%clk 1:32:59]} 6... d5 {[%clk 1:26:30]} 7. Nf3 {[%clk
1:33:19]} 7... c5 {[%clk 1:25:02]} 8. dxc5 {[%clk 1:33:10]} 8... Ne4 {[%clk
1:23:31]} 9. Qc2 {[%clk 1:30:55]} 9... Nxc5 {[%clk 1:20:37]} 10. b4 {[%clk
1:26:28]} 10... Ne4 {[%clk 1:19:58]} 11. Bb2 {[%clk 1:25:14]} 11... a5 {[%clk
1:19:23]} 12. b5 {[%clk 1:21:15]} 12... a4 {[%clk 1:15:05]} 13. e3 {[%clk
1:13:55]} 13... Qa5+ {[%clk 1:13:06]} 14. Nd2 {[%clk 1:13:55]} 14... Nd7 {[%clk
1:13:08]} 15. f3 {[%clk 1:11:33]} 15... Qxd2+ {[%clk 1:11:51]} 16. Qxd2 {[%clk
1:11:57]} 16... Nxd2 {[%clk 1:12:15]} 17. Kxd2 {[%clk 1:12:23]} 17... Nc5 {[%clk
1:12:40]} 18. Kc3 {[%clk 1:04:43]} 18... b6 {[%clk 1:09:42]} 19. cxd5 {[%clk
1:00:11]} 19... exd5 {[%clk 1:10:10]} 20. Kb4 {[%clk 0:54:42]} 20... Bf5 {[%clk
1:08:42]} 21. Rd1 {[%clk 0:52:22]} 21... Rfd8 {[%clk 1:08:15]} 22. Be2 {[%clk
0:15:57]} 22... Rac8 {[%clk 1:07:14]} 23. Bd4 {[%clk 0:10:37]} 23... Bc2 {[%clk
0:55:54]} 24. Rc1 {[%clk 0:08:36]} 24... Bd3 {[%clk 0:47:28]} 25. Rce1 {[%clk
0:08:54]} 25... Bxe2 {[%clk 0:44:13]} 26. Rxe2 {[%clk 0:09:16]} 26... Nd3+
{[%clk 0:43:28]} 27. Kxa4 {[%clk 0:09:39]} 27... Rc1 {[%clk 0:42:22]} 28. Rd2
{[%clk 0:08:28]} 28... Rxh1 {[%clk 0:40:16]} 29. Rxd3 {[%clk 0:08:54]} 29...
Rxh2 {[%clk 0:35:13]} 30. Bxb6 {[%clk 0:08:35]} 30... Ra8+ {[%clk 0:35:36]} 31.
Kb3 {[%clk 0:05:54]} 31... Rxg2 {[%clk 0:33:29]} 32. Rxd5 {[%clk 0:05:05]} 32...
Kf8 {[%clk 0:29:28]} 33. Bc7 {[%clk 0:03:50]} 33... Rg1 {[%clk 0:26:17]} 34. b6
{[%clk 0:03:00]} 34... Rc1 {[%clk 0:25:27]} 35. Kb2 {[%clk 0:02:16]} 35... Rxc7
{[%clk 0:25:33]} 36. bxc7 {[%clk 0:02:43]} 36... Ke7 {[%clk 0:26:03]} 37. a4
{[%clk 0:01:07]} 37... Rc8 {[%clk 0:25:40]} 38. Kb3 {[%clk 0:00:42]} 38... Rxc7
{[%clk 0:26:03]} 39. Kb4 {[%clk 0:00:38]} 39... Rc1 {[%clk 0:25:27]} 40. a5
{[%clk 0:00:34]} 40... Ke6 {[%clk 0:16:51]} 41. e4 {[%clk 0:00:48]} 41... Rb1+
{[%clk 0:17:15]} 42. Kc5 {[%clk 0:00:46]} 42... Rf1 {[%clk 0:16:09]} 43. a6
{[%clk 0:00:43]} 43... Rxf3 {[%clk 0:16:38]} 44. a7 {[%clk 0:00:34]} 44... Ra3
{[%clk 0:17:02]} 45. Kb6 {[%clk 0:00:58]} 45... Rxa7 {[%clk 0:15:34]} 46. Kxa7
{[%clk 0:01:24]} 46... g6 {[%clk 0:12:53]} 47. Kb6 f5 {[%clk 0:13:22]} 48. Kc5
{[%clk 0:01:59]} 1-0

[Variant "Standard"]
[Site "Europe Echecs"]

[Event "Championnat du monde jeunes U12"]
[Date "2024.11.26"]
[White "Fulgentini, Edoardo"]
[Black "Qu, Haoming"]
[WhiteElo "2075"]
[BlackElo "1969"]
[Round "11.17"]
[Result "0-1"]
[TimeControl "5400+30"]

1. e4 {[%clk 1:30:58]} 1... d5 {[%clk 1:30:54]} 2. exd5 {[%clk 1:31:25]} 2...
Qxd5 {[%clk 1:31:20]} 3. Nc3 {[%clk 1:31:51]} 3... Qd6 {[%clk 1:31:45]} 4. d4
{[%clk 1:32:16]} 4... Nf6 {[%clk 1:32:12]} 5. Nf3 {[%clk 1:32:42]} 5... c6
{[%clk 1:32:37]} 6. Ne5 {[%clk 1:33:08]} 6... Nbd7 {[%clk 1:33:02]} 7. Nc4
{[%clk 1:33:35]} 7... Qc7 {[%clk 1:33:28]} 8. a4 {[%clk 1:33:15]} 8... Nb6
{[%clk 1:33:47]} 9. a5 {[%clk 1:25:07]} 9... Nxc4 {[%clk 1:27:32]} 10. Bxc4
{[%clk 1:25:35]} 10... Bg4 {[%clk 1:27:50]} 11. f3 {[%clk 1:21:17]} 11... Bf5
{[%clk 1:27:27]} 12. Qe2 {[%clk 1:17:35]} 12... e6 {[%clk 1:16:07]} 13. O-O
{[%clk 1:02:28]} 13... h5 {[%clk 1:11:43]} 14. Bg5 {[%clk 0:54:57]} 14... Be7
{[%clk 1:04:18]} 15. Rfe1 {[%clk 0:46:38]} 15... Rd8 {[%clk 0:59:11]} 16. Qf2
{[%clk 0:37:06]} 16... Kf8 {[%clk 0:48:01]} 17. Kh1 {[%clk 0:30:43]} 17... h4
{[%clk 0:37:43]} 18. Nd1 {[%clk 0:27:42]} 18... Bd6 {[%clk 0:36:07]} 19. f4
{[%clk 0:24:56]} 19... Ne4 20. Rxe4 {[%clk 0:23:11]} 20... Bxe4 {[%clk 0:28:53]}
21. Bxd8 {[%clk 0:23:27]} 21... Qxd8 {[%clk 0:29:22]} 22. Nc3 {[%clk 0:23:36]}
22... Bf5 {[%clk 0:29:27]} 23. a6 {[%clk 0:22:01]} 23... b5 {[%clk 0:29:27]} 24.
Bd3 {[%clk 0:21:23]} 24... Qc7 {[%clk 0:28:18]} 25. Bxf5 {[%clk 0:18:35]} 25...
exf5 {[%clk 0:28:46]} 26. Ne2 {[%clk 0:18:38]} 26... Rh6 27. c3 {[%clk 0:15:25]}
27... Re6 {[%clk 0:27:26]} 28. Re1 {[%clk 0:13:45]} 28... Qe7 {[%clk 0:27:08]}
29. Kg1 {[%clk 0:08:17]} 29... Re4 {[%clk 0:26:22]} 30. g3 {[%clk 0:08:16]}
30... hxg3 {[%clk 0:26:40]} 31. hxg3 {[%clk 0:08:39]} 31... Qe6 {[%clk 0:26:12]}
32. Kf1 {[%clk 0:07:17]} 32... Qc4 {[%clk 0:24:35]} 33. Qf3 {[%clk 0:04:44]}
33... g6 {[%clk 0:24:06]} 34. b4 {[%clk 0:03:20]} 34... Kg7 {[%clk 0:22:19]} 35.
Kf2 {[%clk 0:02:36]} 35... Qa2 {[%clk 0:21:15]} 36. Qd3 {[%clk 0:01:34]} 36...
Bc7 {[%clk 0:19:21]} 37. Rg1 {[%clk 0:00:50]} 37... Bb6 {[%clk 0:18:43]} 38. Rg2
{[%clk 0:00:34]} 38... Qxa6 {[%clk 0:17:37]} 39. g4 {[%clk 0:00:36]} 39... Qa2
{[%clk 0:17:19]} 40. gxf5 {[%clk 0:00:36]} 40... Rxf4+ {[%clk 0:16:58]} 41. Kg1
{[%clk 0:00:37]} 41... Qa1+ {[%clk 0:17:01]} 42. Kh2 {[%clk 0:00:59]} 42... Rh4+
43. Kg3 {[%clk 0:01:23]} 43... Qe1+ {[%clk 0:17:27]} 44. Kf3 {[%clk 0:01:33]}
44... Bc7 {[%clk 0:16:38]} 45. Ng3 {[%clk 0:00:31]} 45... Rf4# {[%clk 0:17:04]}
0-1

[Variant "Standard"]
[Site "Europe Echecs"]

[Event "Championnat du monde jeunes U12"]
[Date "2024.11.26"]
[White "Karthi, Jashith"]
[Black "Berdashkevich, Makar"]
[WhiteElo "2073"]
[BlackElo "1848"]
[Round "11.18"]
[Result "1/2-1/2"]
[TimeControl "5400+30"]

1. d4 {[%clk 1:30:59]} 1... Nf6 {[%clk 1:29:50]} 2. c4 {[%clk 1:31:22]} 2... e6
{[%clk 1:30:08]} 3. Nc3 {[%clk 1:30:46]} 3... Bb4 {[%clk 1:29:55]} 4. f3 {[%clk
1:30:00]} 4... c5 {[%clk 1:28:34]} 5. d5 {[%clk 1:30:23]} 5... b5 {[%clk
1:27:21]} 6. e4 {[%clk 1:30:48]} 6... O-O {[%clk 1:21:34]} 7. e5 {[%clk
1:29:31]} 7... Ne8 {[%clk 1:21:23]} 8. f4 {[%clk 1:28:12]} 8... exd5 {[%clk
1:19:34]} 9. cxd5 {[%clk 1:26:48]} 9... d6 {[%clk 1:19:07]} 10. Nf3 {[%clk
1:25:22]} 10... c4 {[%clk 1:11:56]} 11. Be3 {[%clk 1:23:15]} 11... Nc7 {[%clk
1:03:37]} 12. Be2 {[%clk 0:47:51]} 12... Bb7 {[%clk 0:49:09]} 13. O-O {[%clk
0:44:55]} 13... dxe5 {[%clk 0:41:08]} 14. d6 {[%clk 0:42:58]} 14... Qxd6 {[%clk
0:34:41]} 15. Qxd6 {[%clk 0:42:18]} 15... Bxd6 {[%clk 0:34:58]} 16. fxe5 {[%clk
0:42:14]} 16... Be7 {[%clk 0:30:20]} 17. Rad1 {[%clk 0:34:32]} 17... a6 {[%clk
0:23:15]} 18. Nd4 {[%clk 0:28:19]} 18... Bc5 {[%clk 0:20:17]} 19. Bf2 {[%clk
0:27:15]} 19... g6 {[%clk 0:17:48]} 20. Kh1 {[%clk 0:26:09]} 20... Bxd4 {[%clk
0:16:53]} 21. Bxd4 {[%clk 0:24:45]} 21... Nd7 {[%clk 0:12:25]} 22. a4 {[%clk
0:20:42]} 22... Ne6 {[%clk 0:07:39]} 23. axb5 {[%clk 0:18:41]} 23... axb5 {[%clk
0:06:56]} 24. Nxb5 {[%clk 0:16:23]} 24... Nxd4 {[%clk 0:06:51]} 25. Rxd4 Nxe5
1/2-1/2

[Variant "Standard"]
[Site "Europe Echecs"]

[Event "Championnat du monde jeunes U12"]
[Date "2024.11.26"]
[White "Baturin-Vinogradov, Miroslav"]
[Black "Huseynov, Ahmed"]
[WhiteElo "2048"]
[BlackElo "1886"]
[Round "11.19"]
[Result "0-1"]
[TimeControl "5400+30"]

1. d4 {[%clk 1:30:57]} 1... d5 {[%clk 1:30:52]} 2. c4 {[%clk 1:31:23]} 2... c6
{[%clk 1:31:18]} 3. Nf3 {[%clk 1:31:49]} 3... Nf6 {[%clk 1:31:42]} 4. e3 {[%clk
1:32:15]} 4... e6 {[%clk 1:32:03]} 5. Bd3 {[%clk 1:32:40]} 5... Nbd7 {[%clk
1:32:09]} 6. b3 {[%clk 1:32:52]} 6... Bd6 {[%clk 1:32:13]} 7. Bb2 {[%clk
1:33:16]} 7... Ne4 {[%clk 1:32:28]} 8. O-O {[%clk 1:32:15]} 8... f5 {[%clk
1:31:31]} 9. Nbd2 {[%clk 1:30:34]} 9... Qf6 {[%clk 1:31:43]} 10. Ne1 {[%clk
1:12:16]} 10... Qh6 {[%clk 1:22:15]} 11. Ndf3 {[%clk 1:05:52]} 11... Qf6 {[%clk
1:15:31]} 12. Be2 {[%clk 1:00:01]} 12... b6 {[%clk 0:46:38]} 13. Nd3 {[%clk
0:59:13]} 13... Bb7 {[%clk 0:45:41]} 14. Nfe5 {[%clk 0:57:40]} 14... Bxe5 {[%clk
0:44:31]} 15. Nxe5 {[%clk 0:56:27]} 15... Nxe5 {[%clk 0:43:28]} 16. dxe5 {[%clk
0:56:56]} 16... Qh6 {[%clk 0:34:19]} 17. cxd5 {[%clk 0:52:43]} 17... exd5 {[%clk
0:34:06]} 18. Rc1 {[%clk 0:44:30]} 18... O-O {[%clk 0:31:56]} 19. Qc2 {[%clk
0:38:19]} 19... Rae8 {[%clk 0:30:04]} 20. b4 {[%clk 0:34:07]} 20... Re6 {[%clk
0:22:26]} 21. f4 {[%clk 0:31:52]} 21... Qh4 {[%clk 0:15:39]} 22. Bd3 {[%clk
0:19:13]} 22... Rh6 {[%clk 0:13:29]} 23. h3 {[%clk 0:18:58]} 23... Rg6 {[%clk
0:08:48]} 24. Rf3 {[%clk 0:10:35]} 24... c5 {[%clk 0:08:20]} 25. bxc5 {[%clk
0:08:07]} 25... d4 {[%clk 0:06:48]} 26. c6 {[%clk 0:05:41]} 26... Bxc6 {[%clk
0:06:38]} 27. Qb3+ {[%clk 0:03:07]} 27... Kh8 {[%clk 0:06:57]} 28. Qb4 {[%clk
0:02:47]} 28... Nc5 {[%clk 0:06:28]} 29. Bxf5 {[%clk 0:01:12]} 29... Bxf3 {[%clk
0:05:26]} 30. Bxg6 {[%clk 0:01:26]} 30... Qg3 {[%clk 0:05:45]} 31. Rc2 {[%clk
0:01:23]} 31... dxe3 {[%clk 0:02:34]} 32. Bd3 {[%clk 0:00:49]} 32... e2 {[%clk
0:02:24]} 0-1

[Variant "Standard"]
[Site "Europe Echecs"]

[Event "Championnat du monde jeunes U12"]
[Date "2024.11.26"]
[White "Bulgak, Damir"]
[Black "Wang, Zihao(SH)"]
[WhiteElo "2044"]
[BlackElo "1773"]
[Round "11.20"]
[Result "1-0"]
[TimeControl "5400+30"]

1. d4 {[%clk 1:30:48]} 1... Nf6 {[%clk 1:30:46]} 2. c4 {[%clk 1:31:12]} 2... e6
{[%clk 1:31:11]} 3. Nf3 {[%clk 1:31:36]} 3... b6 {[%clk 1:31:35]} 4. g3 {[%clk
1:32:02]} 4... Bb7 {[%clk 1:32:00]} 5. Bg2 {[%clk 1:32:27]} 5... Be7 {[%clk
1:32:25]} 6. O-O {[%clk 1:32:51]} 6... O-O {[%clk 1:32:52]} 7. Nc3 {[%clk
1:33:14]} 7... Ne4 {[%clk 1:33:17]} 8. Bd2 {[%clk 1:33:41]} 8... Nxd2 {[%clk
1:31:35]} 9. Qxd2 {[%clk 1:33:57]} 9... d6 {[%clk 1:31:59]} 10. e4 {[%clk
1:33:58]} 10... Nd7 {[%clk 1:31:02]} 11. Qc2 {[%clk 1:31:26]} 11... Bf6 {[%clk
1:29:38]} 12. Rad1 {[%clk 1:31:08]} 12... g6 {[%clk 1:29:34]} 13. a3 {[%clk
1:22:55]} 13... a5 {[%clk 1:27:02]} 14. e5 {[%clk 1:21:34]} 14... Bg7 {[%clk
1:25:53]} 15. Nb5 {[%clk 1:21:29]} 15... Qb8 {[%clk 1:25:12]} 16. Rfe1 {[%clk
1:19:54]} 16... a4 {[%clk 1:19:29]} 17. Qc3 {[%clk 1:16:59]} 17... Rd8 {[%clk
1:13:35]} 18. h4 {[%clk 1:10:37]} 18... h6 {[%clk 1:10:18]} 19. Kh2 {[%clk
1:02:05]} 19... Bh8 {[%clk 1:02:06]} 20. Qe3 {[%clk 0:58:40]} 20... Bg7 {[%clk
1:02:22]} 21. d5 {[%clk 0:41:58]} 21... Nc5 {[%clk 0:52:04]} 22. Qf4 {[%clk
0:24:38]} 22... Ra5 {[%clk 0:37:04]} 23. Nbd4 {[%clk 0:19:49]} 23... exd5 {[%clk
0:33:19]} 24. e6 {[%clk 0:13:42]} 24... Rf8 {[%clk 0:29:48]} 25. e7 {[%clk
0:13:16]} 25... Re8 {[%clk 0:30:07]} 26. h5 {[%clk 0:12:45]} 26... dxc4 {[%clk
0:20:58]} 27. hxg6 {[%clk 0:12:15]} 27... fxg6 {[%clk 0:20:31]} 28. Qg4 {[%clk
0:10:41]} 28... Bd5 {[%clk 0:14:19]} 29. Qxg6 {[%clk 0:10:01]} 29... Bf7 {[%clk
0:14:42]} 30. Qg4 {[%clk 0:06:30]} 30... h5 {[%clk 0:12:41]} 31. Qh4 {[%clk
0:03:34]} 31... Nd3 {[%clk 0:09:50]} 32. Nc6 {[%clk 0:01:25]} 32... Qa8 {[%clk
0:09:47]} 33. Ng5 Nxe1 {[%clk 0:07:42]} 34. Rxe1 {[%clk 0:01:31]} 34... Bf6
{[%clk 0:07:56]} 35. Ne5 {[%clk 0:01:55]} 35... Rxe5 {[%clk 0:07:02]} 36. Rxe5
{[%clk 0:02:19]} 36... Qxg2+ {[%clk 0:06:24]} 37. Kxg2 {[%clk 0:02:49]} 37...
dxe5 {[%clk 0:06:32]} 38. f4 {[%clk 0:03:07]} 38... Rxe7 {[%clk 0:06:28]} 39.
Qh3 {[%clk 0:03:30]} 39... Bxg5 {[%clk 0:06:14]} 40. fxg5 {[%clk 0:03:55]} 40...
Bg6 {[%clk 0:06:17]} 41. Qc8+ {[%clk 0:03:55]} 41... Kg7 {[%clk 0:06:38]} 42.
Kf2 {[%clk 0:03:29]} 42... Bf5 {[%clk 0:05:16]} 43. Qd8 {[%clk 0:03:46]} 43...
Rf7 {[%clk 0:05:20]} 44. Ke3 {[%clk 0:03:50]} 44... Bd3 {[%clk 0:04:15]} 45. Qe8
{[%clk 0:03:32]} 45... e4 {[%clk 0:02:12]} 46. Qe5+ {[%clk 0:03:46]} 46... Kh7
{[%clk 0:02:30]} 47. Qe6 {[%clk 0:03:23]} 47... Rf3+ {[%clk 0:02:24]} 48. Kd4
{[%clk 0:03:44]} 48... c5+ {[%clk 0:01:48]} 49. Ke5 {[%clk 0:02:28]} 49... e3
{[%clk 0:01:36]} 50. Qh6+ {[%clk 0:02:45]} 50... Kg8 {[%clk 0:02:02]} 51. g6
{[%clk 0:03:08]} 51... Rf5+ {[%clk 0:01:58]} 52. Ke6 {[%clk 0:03:31]} 1-0

[Variant "Standard"]
[Site "Europe Echecs"]